Cogmind - Beta 13 @@@ ROGUE MODE // 2024.04.30 @ 09:28:43 Player: mandos Result: Destroyed by as-94728 with Assembled Blade Performance ------------- Evolutions (1) 500 Regions Visited (3) 600 Robots Destroyed (21) 105 Value Destroyed (409) 409 Prototype IDs (0) 0 Alien Tech Used (0) 0 Bonus (-32) -32 TOTAL SCORE: 1582 Bonus ------- Friendly Fire -32 Cogmind --------- Core Integrity 0/400 Matter 282/300 Energy 100/100 System Corruption 0% Temperature Cool (0) Movement Core (700) Ox13 Location -9/Mines Parts ------- > --- POWER (2) -------- (None) > --- PROPULSION (2) --- (None) > --- UTILITY (3) ------ High-capacity Storage Unit > --- WEAPON (2) ------- (None) > --- INVENTORY (20) --- (None) Peak State ------------ > --- POWER ------------ Ion Engine > --- PROPULSION ------- Wheel Compact Wheel > --- UTILITY ---------- Signal Interpreter Improved Terrain Scanner > --- WEAPON ----------- Assault Rifle Improved Light Cannon > --- INVENTORY -------- Light Ion Engine Light Ion Engine Core Shielding Light Assault Rifle Mining Laser [Rating: 10] Favorites ----------- Power Ion Engine Engine Ion Engine Propulsion Wheel Wheel Wheel Utility Improved Terrain Scanner Device Improved Terrain Scanner Storage High-capacity Storage Unit Processor Signal Interpreter Protection Core Shielding Weapon Assault Rifle Ballistic Gun Assault Rifle Ballistic Cannon Improved Light Cannon Launcher Grenade Launcher Build | -11 -10 -9 -9 ------- Run | Yrd Mat Mat Min Slots Evolved 2 | . . 2 . Power 1 | . . 1 . Propulsion . | . . . . Utility 1 | . . 1 . Weapon . | . . . . Parts Attached 15 | 6 4 1 4 Power 3 | 1 . . 2 Engine 3 | 1 . . 2 Core . | . . . . Reactor . | . . . . Propulsion 2 | 2 . . . Treads . | . . . . Leg . | . . . . Wheel 2 | 2 . . . Hover . | . . . . Flight . | . . . . Utility 5 | 1 2 1 1 Device 2 | 1 . 1 . Storage 1 | . 1 . . Processor 1 | . 1 . . Hackware . | . . . . Protection 1 | . . . 1 Artifact . | . . . . Weapon 5 | 2 2 . 1 Energy Gun . | . . . . Energy Cannon . | . . . . Ballistic Gun 2 | 2 . . . Ballistic Cannon 2 | . 1 . 1 Launcher 1 | . 1 . . Special Weapon . | . . . . Impact Weapon . | . . . . Slashing Weapon . | . . . . Piercing Weapon . | . . . . Special Melee Weapon . | . . . . Unidentified Prototypes . | . . . . Parts Lost 11 | . . 1 10 Power 3 | . . . 3 Propulsion 2 | . . 1 1 Utility 3 | . . . 3 Weapon 3 | . . . 3 Highest Loss Streak 10 | . . 1 10 To Critical Strikes . | . . . . Average Slot Usage (%) 84 | . 94 78 74 Engine 13 | . 14 11 13 Wheel 19 | . 28 18 8 Device 9 | . 9 4 10 Storage 7 | . 4 11 11 Processor 9 | . 8 11 9 Ballistic Gun 12 | . 14 11 9 Ballistic Cannon 3 | . 6 . 1 Launcher 8 | . 6 11 9 Naked Turns . | . . . . Heaviest Build 54 | 9 50 51 54 Greatest Support 26 | 26 26 26 10 Greatest Overweight (x) 15 | . 1 5 15 Average Overweight (x) 1 | . . 1 5 Largest Inventory Capacity 20 | 5 20 20 20 Average Capacity 12 | 5 9 20 20 Most Carried 5 | 3 5 5 4 Average Carried 3 | 1 4 4 2 Final Capacity 20 | 5 20 20 20 Final Carried 5 | 3 5 4 . Class Distribution -------------------- 100% | Mutant Dominant Class ---------------- Mutant | -10/Materials Mutant | -9/Materials Mutant | -9/Mines Resources | -11 -10 -9 -9 ----------- Run | Yrd Mat Mat Min Matter Collected 622 | 348 96 49 129 Remotely . | . . . . Salvage Created 455 | 160 182 113 . Parts 49 | 17 21 11 . Haulers Intercepted . | . . . . Recyclers Shooed . | . . . . Parts Field Recycled . | . . . . Retrieved Matter . | . . . . Parts Self-Destructed . | . . . . Prevented . | . . . . Kills | -11 -10 -9 -9 ------- Run | Yrd Mat Mat Min Combat Hostiles Destroyed 10 | . 7 2 1 Guns 2 | . 1 1 . Cannons 3 | . 2 . 1 AOE 5 | . 4 1 . Classes Destroyed 9 | 2 4 2 1 Worker 2 | . 2 . . Builder 1 | . . 1 . Tunneler 5 | 5 . . . Recycler 1 | 1 . . . Watcher 2 | . 1 1 . Swarmer 3 | . 3 . . Grunt 4 | . 4 . . Sentry 2 | . . 2 . Demolisher 1 | . . . 1 Best Kill Streak 5 | 4 5 4 1 Combat Bots Only 3 | . 3 2 1 Max Kills in Single Turn 3 | 1 3 2 1 Gunslinging . | . . . . Exploded 1 | . 1 1 . Melee . | . . . . Uniques/NPCs Destroyed . | . . . . Combat | -11 -10 -9 -9 -------- Run | Yrd Mat Mat Min Hostile Shots Fired 62 | . 14 8 40 Missed 13 | . 4 1 8 Damage Taken 1140 | . 104 116 920 Core 424 | . 21 17 386 Absorbed by Shields . | . . . . Redirected to Shielding 53 | . . . 53 Core Remaining (%) 95 | 100 91 . . Volleys Fired 47 | 22 16 4 5 Largest 2 | 2 2 2 2 Hottest 59 | 40 59 50 50 Shots Fired 91 | 44 32 8 7 Gun 66 | 44 16 4 2 Cannon 11 | . 9 . 2 Launcher 14 | . 7 4 3 Special . | . . . . Kinetic 77 | 44 25 4 4 Thermal . | . . . . Explosive 14 | . 7 4 3 Electromagnetic . | . . . . Robot Hit Streak 10 | 5 7 10 3 Robot Miss Streak 2 | 2 2 . 1 Penetration Max . | . . . . Secondary Targets . | . . . . Shots Hit Robots 56 | 26 18 7 5 Core Hits 44 | 10 12 9 13 Critical Kills . | . . . . Critical Parts Destroyed . | . . . . Critical Strikes . | . . . . Melee Attacks . | . . . . Impact . | . . . . Slashing . | . . . . Piercing . | . . . . Sneak Attacks . | . . . . Combat Hostiles . | . . . . Follow-up Attacks . | . . . . Damage Inflicted 1113 | 297 498 177 141 Guns 486 | 297 126 50 13 Cannons 131 | . 86 . 45 Explosions 496 | . 286 127 83 Melee . | . . . . Ramming . | . . . . Kinetic 617 | 297 212 50 58 Thermal . | . . . . Explosive 496 | . 286 127 83 Electromagnetic . | . . . . Impact . | . . . . Slashing . | . . . . Piercing . | . . . . Highest Corruption . | . . . . Average Corruption . | . . . . Corruption Purged . | . . . . Corruption Blocked . | . . . . Overload Shots . | . . . . Overflow Damage 14 | . . 1 13 Projectiles . | . . . . Explosions 14 | . . 1 13 Melee . | . . . . Knockbacks 1 | . . . 1 Impact . | . . . . Kinetic 1 | . . . 1 Secondary . | . . . . Self-Inflicted Damage 75 | . . 11 64 Shots 4 | . . 1 3 Rammed . | . . . . Targets Rammed . | . . . . Kicked . | . . . . Crushed . | . . . . Highest Temperature 25 | . 25 2 . Average Temperature 12 | . 13 2 . Received Heat Transfer 75 | . 48 27 . Siege Activations . | . . . . Robots Corrupted . | . . . . Combat Hostiles . | . . . . Parts Fried . | . . . . Impact Corruptions . | . . . . Robots Melted . | . . . . Combat Hostiles . | . . . . Parts Melted . | . . . . Heat Transferred . | . . . . Parts Sabotaged . | . . . . Parts Stolen . | . . . . Parts Stripped . | . . . . Power Chain Reactions . | . . . . Alert | -11 -10 -9 -9 ------- Run | Yrd Mat Mat Min Peak Influence 315 | 30 315 230 114 Initial 132 | . 19 132 89 Average 103 | 12 140 171 98 Maximum Alert Level 1 | . 1 1 . Low Security (%) 82 | 100 60 75 100 Level 1 17 | . 39 24 . Level 2 . | . . . . Level 3 . | . . . . Level 4 . | . . . . Level 5 . | . . . . High Security . | . . . . Max Security . | . . . . Squads Dispatched 1 | . 1 . . Investigation 1 | . 1 . . Extermination . | . . . . Reinforcement . | . . . . Assault . | . . . . Garrison . | . . . . Intercept . | . . . . Searches Triggered . | . . . . Construction Impeded . | . . . . Haulers Reinforced . | . . . . Active Scanning Responses . | . . . . Cargo Convoy Interrupts . | . . . . Stealth | -11 -10 -9 -9 --------- Run | Yrd Mat Mat Min Distress Signals 2 | . 1 . 1 Communications Jammed . | . . . . Distress Signals . | . . . . Times Spotted 28 | . 8 4 16 Peak Tracking Total 12 | . 3 3 12 Tactical Retreats . | . . . . Traps | -11 -10 -9 -9 ------- Run | Yrd Mat Mat Min Traps Triggered . | . . . . Indirectly . | . . . . Trap Hack Attempts . | . . . . Triggered . | . . . . Disarmed . | . . . . Reprogrammed . | . . . . Reused . | . . . . Traps Extracted . | . . . . Installed . | . . . . Triggered . | . . . . Machines | -11 -10 -9 -9 ---------- Run | Yrd Mat Mat Min Machines Disabled 3 | . 2 . 1 Max in Single Turn 1 | . 1 . 1 Machines Repaired . | . . . . Machines Dismantled . | . . . . Machines Sabotaged . | . . . . Overloaded Fab Kills . | . . . . Hacking | -11 -10 -9 -9 --------- Run | Yrd Mat Mat Min Machines Accessed 3 | . 3 . . Terminals 3 | . 3 . . Fabricators . | . . . . Repair Stations . | . . . . Recycling Units . | . . . . Scanalyzers . | . . . . Garrison Access . | . . . . Total Hacks 8 | . 8 . . Successful 3 | . 3 . . Failed 5 | . 5 . . Catastrophic . | . . . . Database Lockouts . | . . . . Manual . | . . . . Terminals 8 | . 8 . . Fabricators . | . . . . Repair Stations . | . . . . Recycling Units . | . . . . Scanalyzers . | . . . . Garrison Access . | . . . . Terminal Hacks 3 | . 3 . . Record 1 | . 1 . . Recall Investigation 1 | . 1 . . Zone Layout 1 | . 1 . . Fabricator Hacks . | . . . . Repair Station Hacks . | . . . . Recycling Unit Hacks . | . . . . Scanalyzer . | . . . . Garrison Access Hacks . | . . . . Unauthorized Hacks . | . . . . Terminals . | . . . . Fabricators . | . . . . Repair Stations . | . . . . Recycling Units . | . . . . Scanalyzers . | . . . . Garrison Access . | . . . . Data Cores Recovered . | . . . . Used . | . . . . Hacking Detections 2 | . 2 . . Full Trace Events 2 | . 2 . . Feedback Events . | . . . . Feedback Blocked . | . . . . Robot Schematics Acquired . | . . . . Robots Built . | . . . . Authchips . | . . . . Time . | . . . . Total Robot Build Rating . | . . . . Part Schematics Acquired . | . . . . Parts Built . | . . . . Authchips . | . . . . Time . | . . . . Total Part Build Rating . | . . . . Parts Repaired . | . . . . Time . | . . . . Parts Recycled . | . . . . Recycled Matter . | . . . . Retrieved Matter . | . . . . Retrieved Components . | . . . . Parts Scanalyzed . | . . . . Part Schematics Acquired . | . . . . Parts Damaged . | . . . . Bothacking | -11 -10 -9 -9 ------------ Run | Yrd Mat Mat Min Used RIF Installer . | . . . . Robots Hacked . | . . . . Non-combat . | . . . . Combat . | . . . . Robot Hacks Applied . | . . . . Relay Couplers Released . | . . . . Fabnet Peak Effective % . | . . . . Robots Rewired . | . . . . Allies Hacked . | . . . . Hacks Repelled . | . . . . Allies | -11 -10 -9 -9 -------- Run | Yrd Mat Mat Min Total Allies . | . . . . Largest Group . | . . . . Highest-Rated Group . | . . . . Highest-Rated Ally . | . . . . Total Orders . | . . . . Ally Attacks . | . . . . Total Damage . | . . . . Kills . | . . . . Allies Corrupted . | . . . . Allies Melted . | . . . . Intel | -11 -10 -9 -9 ------- Run | Yrd Mat Mat Min Robot Analysis Total . | . . . . Derelict Logs Recovered . | . . . . Drone Launches . | . . . . Drone Recoveries . | . . . . Exploration | -11 -10 -9 -9 ------------- Run | Yrd Mat Mat Min Turns Passed 602 | 134 234 62 172 Spaces Moved 386 | 68 184 44 90 Core 11 | 8 . . 3 Treads . | . . . . Legs . | . . . . Wheels 375 | 60 184 44 87 Hover . | . . . . Flight . | . . . . Fastest Speed 50 | 50 90 105 155 Average Speed 114 | 85 94 112 175 Slowest Speed 800 | 90 105 155 800 Overloaded Moves . | . . . . Propulsion Burnouts . | . . . . Robots Hopped . | . . . . Cave-ins Triggered . | . . . . Exploration Rate (%) 18 | 3 42 8 20 Regions Visited 3 Branch Regions 1 Pre-discovered Areas . | . . . . Known Exits Taken 2 | . 1 1 . Unknown Exits Taken 1 | 1 . . . Scrap Searched . | . . . . Spaces Dug . | . . . . Terrain Destroyed 114 | . 66 26 22 Melee . | . . . . Projectile . | . . . . AOE 114 | . 66 26 22 Terrain Rammed . | . . . . Walls Destroyed . | . . . . Machines Disabled . | . . . . Actions | -11 -10 -9 -9 --------- Run | Yrd Mat Mat Min Total 463 | 104 212 48 99 Wait . | . . . . Move 383 | 67 183 43 90 Hop . | . . . . Pick Up 14 | 9 5 . . Fast Attach 1 | . 1 . . Attach 13 | 6 2 1 4 Detach 1 | . 1 . . Swap 1 | . 1 . . Drop 3 | . 3 . . Fire 47 | 22 16 4 5 Melee . | . . . . Ram . | . . . . Kick . | . . . . Crush . | . . . . Escape Stasis . | . . . . Rewire . | . . . . Trap . | . . . . Miscellaneous . | . . . . Route ------- -11/Scrapyard -10/Materials -9/Materials -9/Mines History --------- Turn | Location | Event 30 | -11/Scrapyard | Discovered new exit (range 15) 135 | -11/Scrapyard | Entered Materials 317 | -10/Materials | Build established: Mutant 349 | -10/Materials | Discovered new exit (range 12) 362 | -10/Materials | Identified exit to Materials 369 | -10/Materials | Entered another Materials area 369 | -9/Materials | Evolved 2 slots: Power x1, Utility x1 396 | -9/Materials | Discovered new exit (range 4) 406 | -9/Materials | Identified exit to Mines 431 | -9/Materials | Entered Mines 469 | -9/Mines | Joined a pair of Derelicts in attacking an 0b10 outpost 564 | -9/Mines | Assembled infested the area 569 | -9/Mines | A weapon hastily lodged in a ceiling crevice suddenly fell to the ground 600 | -9/Mines | Core integrity fell below 50% 603 | -9/Mines | Core integrity fell below 20% 603 | -9/Mines | Destroyed by as-94728 with Assembled Blade Last Messages --------------- Assault Rifle destroyed. Destroyed Assault Rifle. Signal Interpreter destroyed. Ion Engine destroyed. Destroyed Ion Engine. The unstable cave ceiling collapses. Lgt. Ion Engine destroyed. Grenade Launcher destroyed. Lgt. Ion Engine destroyed. The unstable cave ceiling collapses. D-53 Grenadier knocked back. D-53 Grenadier destroyed. The unstable cave ceiling collapses. D-53 Grenadier destroyed. The unstable cave ceiling collapses. Imp. Terrain Scanner destroyed. as-91590 suffers critical hit (Destroy). Imp. Light Cannon destroyed. The unstable cave ceiling collapses. Core Shielding destroyed. Map ----- +----------------------------------------------------+ | ?????### #?## #??????????????????????????????? | | ????#??# ##?# #??????????????????????????????? | | ???????# ##?# ? ?????????????#?????????????? | | ???????# #??# ???????????????????????????? | | ???#???# #??## ######??????????????????????????? | | #????#?# ########???????????????????????????????? | | ???????# #######?????#???????????????????? | | ?#????######### #?????????????????????????? | | ??#??????????## ##????#?#?????????????????? | | ?? ???????????####### #???????#?????????????????? | | ? ??????????????#??## #?????#???????????????????? | | ????????????????????# #?????????????????????????? | | ??? ????????????????# ##????????? ??????????????? | | ???????????????????## #???????#?????????????????? | | ??????????????###### ##????????????????????????? | | ??????????????# #?????#?#????????????????? | | ????????????#?# aa #????????????????????????? | | ??????????????# a ####??#### #?????????????? | | ???????????????# a ### #?????????????? | | ?????????#?????### a #?????????????????? | | ?????????????????# # #?????????????????? | | ?????????????????# # ###?????????????????? | | ?????????????????#?# # #???????????????????? | | ????????#??????????# #???????????????????? | | ???????????????????# #aaa #???????????????????? | | ??????????#????????### a@a # #????????????? | | ??????????????#?????## a % #????????????? | | ??????????????#??????## ##????????????? | | ??????????????????????###### ##?????????????? | | ???????????????????????????? ##???#??????????? | | ?????????????????#??????????? #???????????????? | | ????????????????????????????? #??????????????? | | ?????????????????????????????? #??????????????? | | ??????????????????????#? ????? ##??????????????? | | ??????????????????????????????####???????????????? | | ?????????????????????????????????????????????????? | | ?????????????????????????????????????????????????? | | ?????????????????#???????????????????????????????? | | ????????????????????? ???????????????????????????? | | ?????????????????????????????????????????????????? | | ?????????????????????????????????????????????????? | | ?????????????????????????????????????????????????? | | ?????????????????????????????????????????????????? | | ?????????????????????????????????????????????????? | | ?????????????????????????????????????????????????? | | ?????????????????????????????????????????????????? | | ?????????????????????????????????????????????????? | | ?????????????????????????????????????????????????? | | ?????????????????????????????????????????????????? | | ?????????????????????????????????????????????????? | +----------------------------------------------------+ Best States ------------- Heat Dissipation 28 Energy Generation 15 Energy Capacity 275 Matter Stores 300 Matter Capacity 300 Sight Range 16 Terrain Scan Range 16 Terrain Scan Density 10 Core Shielding 20 Evasion (%) 42 Item Schematics ----------------- None Robot Schematics ------------------ None Fabricated ------------ Nothing Alien Tech Used ----------------- None Achievements -------------- One Hack Too Far Challenges ------------ None Game ------ Seed HeavyCatalystField Manual? 0 Play Time 00:12:43 Cumulative 2.3 hours Start 2024.04.30 @ 09:16:11 End 2024.04.30 @ 09:28:43 Sessions 1 Manual Loads 0 Difficulty Rogue Special Mode None Game No. 4 Rogue 4 Adventurer 0 Explorer 0 Win Type - Total 0 Types 0/0/0/0/0/0/0/0/0 Lore% 6 Gallery% 5 Achievement% 6 Wizard Run 0 Options --------- Layout 0 ASCII 0 Keyboard 0 Movement Mouse Keybinds 0 Fullscreen 1 Font 24/Smallcaps Map View 76x50 Zoom Use 0% Tactical HUD 0 Map Filters NONE Filters NONE Steam 1 RUN: ecb20928-49cf-4cda-aaab-973fb0565c22